[Event "December 12 Late 2023"]
[Site "https://www.chess.com"]
[Date "2023.12.12"]
[Round "1"]
[White "Carlsen, Magnus"]
[Black "Sherman, Raem"]
[Result "1-0"]
[Board "1"]
[TimeControl "180+1"]
[WhiteFideId "1503014"]
[BlackFideId "2822288"]
[WhiteElo "3317"]
[BlackElo "2516"]
[WhiteTeam "NOR"]
[BlackTeam "ISR"]
[WhiteClock "0:01:30"]
[BlackClock "0:00:17"]

1. d4 {[%clk 0:02:59]}  Nf6 {[%clk 0:02:59]} 2. Bg5 {[%clk 0:02:58]}  d5 {[%clk 0:02:59]} 3. Nf3 {[%clk 0:02:57]}  c5 {[%clk 0:02:59]} 4. c4 {[%clk 0:02:56]}  cxd4 {[%clk 0:02:57]} 5. Bxf6 {[%clk 0:02:53]}  gxf6 {[%clk 0:02:57]} 6. cxd5 {[%clk 0:02:52]}  Qxd5 {[%clk 0:02:55]} 7. Nc3 {[%clk 0:02:52]}  Qa5 {[%clk 0:02:54]} 8. Nxd4 {[%clk 0:02:52]}  Bd7 {[%clk 0:02:52]} 9. g3 {[%clk 0:02:52]}  Nc6 {[%clk 0:02:51]} 10. Bg2 {[%clk 0:02:53]}  Qb6 {[%clk 0:02:46]} 11. Nb3 {[%clk 0:02:47]}  e6 {[%clk 0:02:43]} 12. O-O {[%clk 0:02:47]}  Rd8 {[%clk 0:02:34]} 13. Rc1 {[%clk 0:02:46]}  Bg7 {[%clk 0:02:33]} 14. Na4 {[%clk 0:02:44]}  Qb4 {[%clk 0:02:30]} 15. Nac5 {[%clk 0:02:41]}  Bc8 {[%clk 0:02:27]} 16. Qe1 {[%clk 0:02:37]}  Qxe1 {[%clk 0:02:24]} 17. Rfxe1 {[%clk 0:02:38]}  f5 {[%clk 0:02:22]} 18. Nxb7 {[%clk 0:02:34]}  Bxb7 {[%clk 0:02:23]} 19. Bxc6+ {[%clk 0:02:33]}  Bxc6 {[%clk 0:02:23]} 20. Rxc6 {[%clk 0:02:34]}  Bxb2 {[%clk 0:02:21]} 21. Rb1 {[%clk 0:02:34]}  Be5 {[%clk 0:02:20]} 22. Ra6 {[%clk 0:02:34]}  Rd7 {[%clk 0:02:05]} 23. Nc5 {[%clk 0:02:34]}  Rd2 {[%clk 0:02:04]} 24. Rxa7 {[%clk 0:02:13]}  O-O {[%clk 0:01:55]} 25. Nd3 {[%clk 0:02:09]}  Rxe2 {[%clk 0:01:49]} 26. Kf1 {[%clk 0:02:07]}  Re4 {[%clk 0:01:46]} 27. Nc5 {[%clk 0:02:03]}  Rc4 {[%clk 0:01:38]} 28. Nd7 {[%clk 0:02:03]}  Bd4 {[%clk 0:01:38]} 29. Rab7 {[%clk 0:01:56]}  Rd8 {[%clk 0:01:32]} 30. Rd1 {[%clk 0:01:50]}  Kg7 {[%clk 0:01:27]} 31. Ne5 {[%clk 0:01:49]}  Rc2 {[%clk 0:01:12]} 32. Nxf7 {[%clk 0:01:45]}  Rxf2+ {[%clk 0:01:08]} 33. Ke1 {[%clk 0:01:44]}  Bc3+ {[%clk 0:01:08]} 34. Kxf2 {[%clk 0:01:44]}  Rxd1 {[%clk 0:01:08]} 35. Ng5+ {[%clk 0:01:45]}  Kg6 {[%clk 0:01:05]} 36. Nxe6 {[%clk 0:01:44]}  Rd2+ {[%clk 0:01:05]} 37. Kf3 {[%clk 0:01:44]}  Rxh2 {[%clk 0:00:50]} 38. Nf8+ {[%clk 0:01:43]}  Kf6 {[%clk 0:00:47]} 39. Nxh7+ {[%clk 0:01:42]}  Kg6 {[%clk 0:00:47]} 40. Nf8+ {[%clk 0:01:42]}  Kf6 {[%clk 0:00:47]} 41. Nd7+ {[%clk 0:01:38]}  Kg6 {[%clk 0:00:43]} 42. Rb6+ {[%clk 0:01:32]}  Kg5 {[%clk 0:00:37]} 43. Nf8 {[%clk 0:01:32]}  Rxa2 {[%clk 0:00:25]} 44. Ne6+ {[%clk 0:01:31]}  Kh5 {[%clk 0:00:19]} 45. Nf4+ {[%clk 0:01:29]}  Kg5 {[%clk 0:00:17]} 46. Rg6# {[%clk 0:01:30]} 1-0

[Event "December 12 Late 2023"]
[Site "https://www.chess.com"]
[Date "2023.12.12"]
[Round "1"]
[White "Karas, Marek"]
[Black "Nihal Sarin"]
[Result "0-1"]
[Board "2"]
[TimeControl "180+1"]
[WhiteFideId "14928558"]
[BlackFideId "25092340"]
[WhiteElo "2515"]
[BlackElo "3143"]
[WhiteTeam "CZE"]
[BlackTeam "IND"]
[WhiteClock "0:00:00"]
[BlackClock "0:01:08"]

1. d4 {[%clk 0:03:00]}  Nf6 {[%clk 0:02:58]} 2. Nf3 {[%clk 0:02:59]}  d5 {[%clk 0:02:58]} 3. c4 {[%clk 0:02:59]}  e6 {[%clk 0:02:57]} 4. Nc3 {[%clk 0:02:58]}  c5 {[%clk 0:02:56]} 5. cxd5 {[%clk 0:02:58]}  cxd4 {[%clk 0:02:55]} 6. Nxd4 {[%clk 0:02:48]}  Nxd5 {[%clk 0:02:55]} 7. Nxd5 {[%clk 0:02:46]}  Qxd5 {[%clk 0:02:55]} 8. e3 {[%clk 0:02:43]}  Bd7 {[%clk 0:02:52]} 9. Qb3 {[%clk 0:02:39]}  Qxb3 {[%clk 0:02:40]} 10. axb3 {[%clk 0:02:33]}  Nc6 {[%clk 0:02:35]} 11. Nb5 {[%clk 0:02:23]}  Bb4+ {[%clk 0:02:32]} 12. Bd2 {[%clk 0:02:20]}  Bxd2+ {[%clk 0:02:32]} 13. Kxd2 {[%clk 0:02:21]}  Ke7 {[%clk 0:02:33]} 14. Be2 {[%clk 0:02:13]}  Rhd8 {[%clk 0:02:32]} 15. Rhd1 {[%clk 0:02:08]}  Nb4 {[%clk 0:02:25]} 16. Kc3 {[%clk 0:01:43]}  Nd5+ {[%clk 0:02:21]} 17. Kc2 {[%clk 0:01:33]}  Bxb5 {[%clk 0:02:14]} 18. Bxb5 {[%clk 0:01:33]}  Rac8+ {[%clk 0:02:14]} 19. Bc4 {[%clk 0:01:22]}  b5 {[%clk 0:02:14]} 20. Rxa7+ {[%clk 0:01:21]}  Kf8 {[%clk 0:02:14]} 21. Rd4 {[%clk 0:01:20]}  e5 {[%clk 0:01:42]} 22. Rh4 {[%clk 0:01:17]}  bxc4 {[%clk 0:01:39]} 23. bxc4 {[%clk 0:01:02]}  Nb4+ {[%clk 0:01:39]} 24. Kc3 {[%clk 0:00:55]}  Rb8 {[%clk 0:01:39]} 25. c5 {[%clk 0:00:46]}  Rd3+ {[%clk 0:01:39]} 26. Kc4 {[%clk 0:00:46]}  Rd2 {[%clk 0:01:40]} 27. Rxh7 {[%clk 0:00:37]}  Kg8 {[%clk 0:01:38]} 28. Rh4 {[%clk 0:00:34]}  Rxf2 {[%clk 0:01:22]} 29. Re4 {[%clk 0:00:31]}  Rxg2 {[%clk 0:01:13]} 30. Ra4 {[%clk 0:00:25]}  Rxb2 {[%clk 0:01:08]} 31. Rxe5 {[%clk 0:00:19]}  Rc2+ {[%clk 0:01:07]} 32. Kb3 {[%clk 0:00:18]}  Rxc5 {[%clk 0:01:07]} 33. Rxc5 {[%clk 0:00:14]}  Nd3+ {[%clk 0:01:07]} 34. Kc4 {[%clk 0:00:05]}  Nb2+ {[%clk 0:01:07]} 35. Kd5 {[%clk 0:00:05]}  Nxa4 {[%clk 0:01:08]} 36. Rc7 {[%clk 0:00:03]}  Rd8+ {[%clk 0:01:07]} 37. Ke5 {[%clk 0:00:03]}  Re8+ {[%clk 0:01:08]} 38. Kf4 {[%clk 0:00:03]}  g6 {[%clk 0:01:08]} 39. e4 {[%clk 0:00:03]}  Kg7 {[%clk 0:01:07]} 40. h4 {[%clk 0:00:03]}  Re6 {[%clk 0:01:08]} 41. Rc4 {[%clk 0:00:00]}  Nb2 {[%clk 0:01:08]} 0-1

[Event "December 12 Late 2023"]
[Site "https://www.chess.com"]
[Date "2023.12.12"]
[Round "1"]
[White "Erigaisi Arjun"]
[Black "Petukhov, Dmitry"]
[Result "1-0"]
[Board "5"]
[TimeControl "180+1"]
[WhiteFideId "35009192"]
[BlackFideId "4142748"]
[WhiteElo "3098"]
[BlackElo "2512"]
[WhiteTeam "IND"]
[BlackTeam "RUS"]
[WhiteClock "0:02:11"]
[BlackClock "0:00:31"]

1. Nf3 {[%clk 0:02:58]}  Nf6 {[%clk 0:02:58]} 2. c4 {[%clk 0:02:59]}  g6 {[%clk 0:02:59]} 3. g3 {[%clk 0:02:59]}  Bg7 {[%clk 0:02:57]} 4. Bg2 {[%clk 0:03:00]}  O-O {[%clk 0:02:57]} 5. O-O {[%clk 0:03:01]}  c6 {[%clk 0:02:57]} 6. b3 {[%clk 0:03:00]}  d5 {[%clk 0:02:58]} 7. Bb2 {[%clk 0:02:57]}  Bf5 {[%clk 0:02:55]} 8. d3 {[%clk 0:02:53]}  Na6 {[%clk 0:02:44]} 9. Nbd2 {[%clk 0:02:52]}  Nc5 {[%clk 0:02:41]} 10. b4 {[%clk 0:02:51]}  Ncd7 {[%clk 0:02:37]} 11. a4 {[%clk 0:02:47]}  a5 {[%clk 0:02:36]} 12. b5 {[%clk 0:02:46]}  Re8 {[%clk 0:02:30]} 13. bxc6 {[%clk 0:02:44]}  bxc6 {[%clk 0:02:31]} 14. Nd4 {[%clk 0:02:45]}  Qb6 {[%clk 0:01:35]} 15. Rb1 {[%clk 0:02:44]}  Qa6 {[%clk 0:01:25]} 16. Qc2 {[%clk 0:02:36]}  Rac8 {[%clk 0:01:19]} 17. Rfc1 {[%clk 0:02:35]}  Nc5 {[%clk 0:01:06]} 18. Nxf5 {[%clk 0:02:27]}  gxf5 {[%clk 0:01:05]} 19. Nf3 {[%clk 0:02:28]}  e6 {[%clk 0:01:03]} 20. Bd4 {[%clk 0:02:26]}  Nfd7 {[%clk 0:00:59]} 21. Bxg7 {[%clk 0:02:23]}  Kxg7 {[%clk 0:01:00]} 22. Qd2 {[%clk 0:02:23]}  f6 {[%clk 0:00:59]} 23. Nd4 {[%clk 0:02:22]}  Qa7 {[%clk 0:00:51]} 24. Qe3 {[%clk 0:02:19]}  Nf8 {[%clk 0:00:46]} 25. h4 {[%clk 0:02:12]}  Qe7 {[%clk 0:00:45]} 26. cxd5 {[%clk 0:02:12]}  cxd5 {[%clk 0:00:45]} 27. Bxd5 {[%clk 0:02:12]}  Nxa4 {[%clk 0:00:44]} 28. Rxc8 {[%clk 0:02:10]}  Rxc8 {[%clk 0:00:31]} 29. Nxf5+ {[%clk 0:02:11]} 1-0

[Event "December 12 Late 2023"]
[Site "https://www.chess.com"]
[Date "2023.12.12"]
[Round "1"]
[White "Jimenez Almeida, Luis David"]
[Black "Martinez Alcantara, Jose Eduardo"]
[Result "0-1"]
[Board "8"]
[TimeControl "180+1"]
[WhiteFideId "22242244"]
[BlackFideId "3805662"]
[WhiteElo "2510"]
[BlackElo "3057"]
[WhiteTeam "ESP"]
[BlackTeam "PER"]
[WhiteClock "0:00:11"]
[BlackClock "0:00:56"]

1. e4 {[%clk 0:02:55]}  c5 {[%clk 0:03:00]} 2. Nc3 {[%clk 0:02:54]}  d6 {[%clk 0:03:00]} 3. Nge2 {[%clk 0:02:53]}  a6 {[%clk 0:03:00]} 4. d4 {[%clk 0:02:53]}  cxd4 {[%clk 0:03:01]} 5. Nxd4 {[%clk 0:02:53]}  e6 {[%clk 0:03:01]} 6. g3 {[%clk 0:02:49]}  Bd7 {[%clk 0:03:00]} 7. Bg2 {[%clk 0:02:50]}  Nc6 {[%clk 0:03:01]} 8. Be3 {[%clk 0:02:47]}  Nf6 {[%clk 0:03:01]} 9. h3 {[%clk 0:02:47]}  Be7 {[%clk 0:03:01]} 10. Qd2 {[%clk 0:02:46]}  Rc8 {[%clk 0:03:01]} 11. O-O {[%clk 0:02:43]}  O-O {[%clk 0:03:01]} 12. Nb3 {[%clk 0:02:40]}  Ne5 {[%clk 0:03:00]} 13. Qe2 {[%clk 0:02:35]}  Nc4 {[%clk 0:02:59]} 14. Bc1 {[%clk 0:02:31]}  b5 {[%clk 0:03:00]} 15. Nd1 {[%clk 0:02:26]}  Qc7 {[%clk 0:02:56]} 16. c3 {[%clk 0:02:25]}  Bc6 {[%clk 0:02:51]} 17. Nd4 {[%clk 0:02:20]}  Bd7 {[%clk 0:02:45]} 18. b3 {[%clk 0:02:19]}  Na5 {[%clk 0:02:42]} 19. Bb2 {[%clk 0:02:17]}  Rfe8 {[%clk 0:02:42]} 20. Ne3 {[%clk 0:02:15]}  Nb7 {[%clk 0:02:35]} 21. Rac1 {[%clk 0:02:11]}  Nc5 {[%clk 0:02:35]} 22. c4 {[%clk 0:02:08]}  b4 {[%clk 0:02:33]} 23. Ng4 {[%clk 0:02:02]}  Nxg4 {[%clk 0:02:31]} 24. hxg4 {[%clk 0:02:03]}  Bf8 {[%clk 0:02:30]} 25. Rfd1 {[%clk 0:02:00]}  Qb6 {[%clk 0:02:30]} 26. e5 {[%clk 0:01:32]}  dxe5 {[%clk 0:02:30]} 27. Qxe5 {[%clk 0:01:33]}  f6 {[%clk 0:02:30]} 28. Qe2 {[%clk 0:01:30]}  Rcd8 {[%clk 0:02:31]} 29. g5 {[%clk 0:01:20]}  e5 {[%clk 0:02:16]} 30. Bd5+ {[%clk 0:01:02]}  Kh8 {[%clk 0:02:16]} 31. Nf3 {[%clk 0:00:59]}  Bg4 {[%clk 0:02:07]} 32. gxf6 {[%clk 0:00:45]}  Qxf6 {[%clk 0:02:08]} 33. Qe3 {[%clk 0:00:41]}  Rxd5 {[%clk 0:01:50]} 34. Rxd5 {[%clk 0:00:42]}  Qxf3 {[%clk 0:01:45]} 35. Bxe5 {[%clk 0:00:21]}  Qxe3 {[%clk 0:01:38]} 36. fxe3 {[%clk 0:00:22]}  Bf3 {[%clk 0:01:34]} 37. Bd4 {[%clk 0:00:17]}  Bxd5 {[%clk 0:01:32]} 38. cxd5 {[%clk 0:00:18]}  Ne4 {[%clk 0:01:33]} 39. Rc6 {[%clk 0:00:18]}  a5 {[%clk 0:01:26]} 40. Kg2 {[%clk 0:00:18]}  Kg8 {[%clk 0:01:26]} 41. Rc7 {[%clk 0:00:18]}  Nd6 {[%clk 0:01:21]} 42. Ra7 {[%clk 0:00:18]}  Nb5 {[%clk 0:01:18]} 43. Rxa5 {[%clk 0:00:18]}  Nxd4 {[%clk 0:01:18]} 44. exd4 {[%clk 0:00:19]}  Re4 {[%clk 0:01:18]} 45. Kf3 {[%clk 0:00:16]}  Rxd4 {[%clk 0:01:19]} 46. Ke3 {[%clk 0:00:17]}  Rd1 {[%clk 0:01:19]} 47. Ke4 {[%clk 0:00:17]}  h5 {[%clk 0:01:16]} 48. d6 {[%clk 0:00:16]}  Bxd6 {[%clk 0:01:15]} 49. Rxh5 {[%clk 0:00:16]}  Bxg3 {[%clk 0:01:15]} 50. Kf5 {[%clk 0:00:16]}  Bd6 {[%clk 0:01:14]} 51. Ke6 {[%clk 0:00:15]}  Bf8 {[%clk 0:01:14]} 52. Rb5 {[%clk 0:00:15]}  Rd6+ {[%clk 0:01:15]} 53. Kf5 {[%clk 0:00:15]}  Ra6 {[%clk 0:01:15]} 54. Rb8 {[%clk 0:00:14]}  Rxa2 {[%clk 0:01:14]} 55. Ke6 {[%clk 0:00:14]}  Ra6+ {[%clk 0:01:14]} 56. Kf5 {[%clk 0:00:15]}  Ra3 {[%clk 0:01:14]} 57. Kg6 {[%clk 0:00:14]}  Rxb3 {[%clk 0:01:13]} 58. Rb5 {[%clk 0:00:12]}  Rg3+ {[%clk 0:01:13]} 59. Kh5 {[%clk 0:00:12]}  Rc3 {[%clk 0:01:12]} 60. Rb8 {[%clk 0:00:12]}  Rc6 {[%clk 0:01:08]} 61. Rb7 {[%clk 0:00:11]}  Rf6 {[%clk 0:01:05]} 62. Kg5 {[%clk 0:00:11]}  Kh7 {[%clk 0:01:06]} 63. Kh5 {[%clk 0:00:12]}  Bc5 {[%clk 0:01:04]} 64. Rb5 {[%clk 0:00:11]}  Be7 {[%clk 0:01:01]} 65. Rb7 {[%clk 0:00:12]}  Re6 {[%clk 0:00:55]} 66. Kg4 {[%clk 0:00:12]}  Kg6 {[%clk 0:00:55]} 67. Kf4 {[%clk 0:00:12]}  Bd6+ {[%clk 0:00:55]} 68. Kg4 {[%clk 0:00:12]}  Kf6 {[%clk 0:00:54]} 69. Rb5 {[%clk 0:00:12]}  Re4+ {[%clk 0:00:54]} 70. Kh5 {[%clk 0:00:12]}  g6+ {[%clk 0:00:55]} 71. Kh6 {[%clk 0:00:12]}  Rh4+ {[%clk 0:00:55]} 72. Rh5 {[%clk 0:00:11]}  Rxh5# {[%clk 0:00:56]} 0-1

[Event "December 12 Late 2023"]
[Site "https://www.chess.com"]
[Date "2023.12.12"]
[Round "1"]
[White "Lazavik, Denis"]
[Black "Dubnevych, Maksym"]
[Result "1-0"]
[Board "9"]
[TimeControl "180+1"]
[WhiteFideId "13515110"]
[BlackFideId "14184001"]
[WhiteElo "3052"]
[BlackElo "2509"]
[WhiteTeam "BLR"]
[BlackTeam "UKR"]
[WhiteClock "0:01:35"]
[BlackClock "0:00:35"]

1. d4 {[%clk 0:03:00]}  d5 {[%clk 0:02:59]} 2. c4 {[%clk 0:03:01]}  e6 {[%clk 0:02:59]} 3. Nc3 {[%clk 0:03:01]}  c5 {[%clk 0:03:00]} 4. e3 {[%clk 0:03:00]}  Nf6 {[%clk 0:02:59]} 5. Nf3 {[%clk 0:03:00]}  Nc6 {[%clk 0:02:59]} 6. cxd5 {[%clk 0:03:01]}  Nxd5 {[%clk 0:02:58]} 7. Bd3 {[%clk 0:02:59]}  cxd4 {[%clk 0:02:52]} 8. exd4 {[%clk 0:02:59]}  Bd6 {[%clk 0:02:52]} 9. O-O {[%clk 0:02:59]}  Nf4 {[%clk 0:02:48]} 10. Bc2 {[%clk 0:02:56]}  O-O {[%clk 0:02:45]} 11. Re1 {[%clk 0:02:53]}  a6 {[%clk 0:02:39]} 12. g3 {[%clk 0:02:49]}  Ng6 {[%clk 0:02:38]} 13. h4 {[%clk 0:02:49]}  Nge7 {[%clk 0:01:45]} 14. Bxh7+ {[%clk 0:02:21]}  Kh8 {[%clk 0:01:28]} 15. Bb1 {[%clk 0:02:11]}  Nf5 {[%clk 0:01:24]} 16. Ng5 {[%clk 0:02:07]}  Ncxd4 {[%clk 0:01:13]} 17. Be3 {[%clk 0:01:51]}  Be5 {[%clk 0:00:40]} 18. Bxd4 {[%clk 0:01:39]}  Qxd4 {[%clk 0:00:38]} 19. Bxf5 {[%clk 0:01:36]}  Qxd1 {[%clk 0:00:35]} 20. Nxd1 {[%clk 0:01:37]}  Bc3 {[%clk 0:00:35]} 21. Nxc3 {[%clk 0:01:35]} 1-0

[Event "December 12 Late 2023"]
[Site "https://www.chess.com"]
[Date "2023.12.12"]
[Round "1"]
[White "Ismayil, Malak"]
[Black "Sarana, Alexey"]
[Result "0-1"]
[Board "12"]
[TimeControl "180+1"]
[WhiteFideId "13412604"]
[BlackFideId "24133795"]
[WhiteElo "2505"]
[BlackElo "3040"]
[WhiteTeam "AZE"]
[BlackTeam "SRB"]
[WhiteClock "0:00:00"]
[BlackClock "0:00:04"]

1. e4 {[%clk 0:03:00]}  c5 {[%clk 0:02:59]} 2. Nf3 {[%clk 0:03:00]}  d6 {[%clk 0:03:00]} 3. Bb5+ {[%clk 0:03:00]}  Bd7 {[%clk 0:03:00]} 4. Bxd7+ {[%clk 0:02:59]}  Nxd7 {[%clk 0:03:01]} 5. O-O {[%clk 0:02:57]}  e6 {[%clk 0:03:01]} 6. d4 {[%clk 0:02:51]}  cxd4 {[%clk 0:03:00]} 7. Qxd4 {[%clk 0:02:52]}  Ngf6 {[%clk 0:02:57]} 8. c4 {[%clk 0:02:52]}  Qb6 {[%clk 0:02:38]} 9. Qxb6 {[%clk 0:02:39]}  Nxb6 {[%clk 0:02:38]} 10. Nbd2 {[%clk 0:02:40]}  g6 {[%clk 0:02:29]} 11. b3 {[%clk 0:02:36]}  Bg7 {[%clk 0:02:30]} 12. Ba3 {[%clk 0:02:34]}  Rd8 {[%clk 0:02:29]} 13. Rad1 {[%clk 0:02:33]}  a6 {[%clk 0:02:26]} 14. Rfe1 {[%clk 0:02:33]}  Ng4 {[%clk 0:02:22]} 15. Nf1 {[%clk 0:02:19]}  Nc8 {[%clk 0:02:20]} 16. h3 {[%clk 0:02:11]}  Ne5 {[%clk 0:02:19]} 17. Nxe5 {[%clk 0:02:09]}  Bxe5 {[%clk 0:02:20]} 18. g3 {[%clk 0:02:09]}  g5 {[%clk 0:02:18]} 19. Ne3 {[%clk 0:02:09]}  h5 {[%clk 0:02:18]} 20. Rd3 {[%clk 0:01:56]}  Kd7 {[%clk 0:02:00]} 21. c5 {[%clk 0:01:49]}  Kc7 {[%clk 0:01:55]} 22. Nc4 {[%clk 0:01:49]}  Bg7 {[%clk 0:01:12]} 23. cxd6+ {[%clk 0:01:46]}  Kd7 {[%clk 0:01:13]} 24. Rc1 {[%clk 0:01:36]}  e5 {[%clk 0:01:03]} 25. Ne3 {[%clk 0:01:34]}  Ke6 {[%clk 0:01:00]} 26. Rc7 {[%clk 0:01:14]}  Rd7 {[%clk 0:00:55]} 27. Nf5 {[%clk 0:01:00]}  Bf6 {[%clk 0:00:55]} 28. Rdc3 {[%clk 0:00:45]}  Nb6 {[%clk 0:00:55]} 29. Rxd7 {[%clk 0:00:39]}  Nxd7 {[%clk 0:00:55]} 30. Rc7 {[%clk 0:00:37]}  b5 {[%clk 0:00:56]} 31. Ne3 {[%clk 0:00:25]}  Rb8 {[%clk 0:00:47]} 32. Nd5 {[%clk 0:00:24]}  Bd8 {[%clk 0:00:45]} 33. Ra7 {[%clk 0:00:22]}  a5 {[%clk 0:00:45]} 34. Nc7+ {[%clk 0:00:21]}  Kf6 {[%clk 0:00:45]} 35. Bb2 {[%clk 0:00:18]}  g4 {[%clk 0:00:34]} 36. hxg4 {[%clk 0:00:17]}  hxg4 {[%clk 0:00:35]} 37. Rxa5 {[%clk 0:00:15]}  b4 {[%clk 0:00:29]} 38. Rb5 {[%clk 0:00:09]}  Rc8 {[%clk 0:00:15]} 39. Rxb4 {[%clk 0:00:05]}  Kg6 {[%clk 0:00:14]} 40. Rc4 {[%clk 0:00:04]}  Rb8 {[%clk 0:00:13]} 41. Bc3 {[%clk 0:00:04]}  Rb6 {[%clk 0:00:13]} 42. Bb4 {[%clk 0:00:03]}  Rb7 {[%clk 0:00:12]} 43. Nd5 {[%clk 0:00:03]}  Rb8 {[%clk 0:00:10]} 44. Ne7+ {[%clk 0:00:03]}  Kf6 {[%clk 0:00:10]} 45. Nc6 {[%clk 0:00:04]}  Ra8 {[%clk 0:00:10]} 46. Bc3 {[%clk 0:00:04]}  Bb6 {[%clk 0:00:10]} 47. a4 {[%clk 0:00:02]}  Ke6 {[%clk 0:00:09]} 48. a5 {[%clk 0:00:03]}  Bc5 {[%clk 0:00:10]} 49. b4 {[%clk 0:00:03]}  Bxd6 {[%clk 0:00:10]} 50. b5 {[%clk 0:00:02]}  Bc5 {[%clk 0:00:06]} 51. Bb4 {[%clk 0:00:03]}  Bxb4 {[%clk 0:00:04]} 52. Rxb4 {[%clk 0:00:04]}  Kd6 {[%clk 0:00:04]} 53. Rc4 {[%clk 0:00:03]}  Nc5 {[%clk 0:00:04]} 54. Kg2 {[%clk 0:00:03]}  f6 {[%clk 0:00:04]} 55. Rc3 {[%clk 0:00:03]}  Nxe4 {[%clk 0:00:03]} 56. Rd3+ {[%clk 0:00:03]}  Kc5 {[%clk 0:00:04]} 57. Rd7 {[%clk 0:00:02]}  Kxb5 {[%clk 0:00:03]} 58. Ne7 {[%clk 0:00:02]}  Kxa5 {[%clk 0:00:02]} 59. Nf5 {[%clk 0:00:02]}  Kb6 {[%clk 0:00:02]} 60. Ne3 {[%clk 0:00:02]}  Ra2 {[%clk 0:00:02]} 61. Nxg4 {[%clk 0:00:01]}  Kc6 {[%clk 0:00:03]} 62. Rf7 {[%clk 0:00:00]}  Kd6 {[%clk 0:00:04]} 0-1

[Event "December 12 Late 2023"]
[Site "https://www.chess.com"]
[Date "2023.12.12"]
[Round "1"]
[White "Wartiovaara, Oliver"]
[Black "Drygalov, Andrey"]
[Result "0-1"]
[Board "16"]
[TimeControl "180+1"]
[WhiteFideId "513024"]
[BlackFideId "24171735"]
[WhiteElo "2500"]
[BlackElo "3003"]
[WhiteTeam "FIN"]
[BlackTeam "RUS"]
[WhiteClock "0:00:16"]
[BlackClock "0:01:31"]

1. d4 {[%clk 0:03:00]}  Nf6 {[%clk 0:02:59]} 2. Nf3 {[%clk 0:03:00]}  d5 {[%clk 0:02:59]} 3. e3 {[%clk 0:03:00]}  c5 {[%clk 0:02:58]} 4. dxc5 {[%clk 0:03:00]}  e6 {[%clk 0:02:57]} 5. b4 {[%clk 0:02:59]}  a5 {[%clk 0:02:56]} 6. c3 {[%clk 0:03:00]}  Bd7 {[%clk 0:02:52]} 7. a4 {[%clk 0:02:17]}  axb4 {[%clk 0:02:41]} 8. cxb4 {[%clk 0:02:18]}  b6 {[%clk 0:02:41]} 9. Bb2 {[%clk 0:02:12]}  bxc5 {[%clk 0:02:41]} 10. b5 {[%clk 0:02:12]}  Bd6 {[%clk 0:02:36]} 11. Nbd2 {[%clk 0:02:10]}  O-O {[%clk 0:02:36]} 12. Be2 {[%clk 0:01:53]}  Qe7 {[%clk 0:02:35]} 13. O-O {[%clk 0:01:52]}  c4 {[%clk 0:02:26]} 14. Ne5 {[%clk 0:01:31]}  Rc8 {[%clk 0:02:24]} 15. Bc3 {[%clk 0:01:22]}  Bb4 {[%clk 0:02:21]} 16. Bxb4 {[%clk 0:01:18]}  Qxb4 {[%clk 0:02:22]} 17. Qc2 {[%clk 0:01:14]}  Be8 {[%clk 0:01:44]} 18. Rfb1 {[%clk 0:01:12]}  Qd6 {[%clk 0:01:43]} 19. Ndf3 {[%clk 0:01:08]}  Nfd7 {[%clk 0:01:43]} 20. Nxd7 {[%clk 0:01:02]}  Nxd7 {[%clk 0:01:43]} 21. a5 {[%clk 0:00:58]}  Nc5 {[%clk 0:01:43]} 22. b6 {[%clk 0:00:24]}  Rcb8 {[%clk 0:01:41]} 23. Nd4 {[%clk 0:00:22]}  g6 {[%clk 0:01:41]} 24. Nb5 {[%clk 0:00:21]}  Bxb5 {[%clk 0:01:41]} 25. Rxb5 {[%clk 0:00:21]}  Nb3 {[%clk 0:01:34]} 26. Rxb3 {[%clk 0:00:20]}  cxb3 {[%clk 0:01:34]} 27. Qxb3 {[%clk 0:00:16]}  Rxb6 {[%clk 0:01:31]} 0-1

[Event "December 12 Late 2023"]
[Site "https://www.chess.com"]
[Date "2023.12.12"]
[Round "1"]
[White "Kraiouchkine, Nikita"]
[Black "Salem, A.R. Saleh"]
[Result "0-1"]
[Board "20"]
[TimeControl "180+1"]
[WhiteFideId "2607140"]
[BlackFideId "9301348"]
[WhiteElo "2498"]
[BlackElo "2984"]
[WhiteTeam "CAN"]
[BlackTeam "UAE"]
[WhiteClock "0:00:12"]
[BlackClock "0:00:55"]

1. e4 {[%clk 0:02:59]}  c5 {[%clk 0:02:58]} 2. Nf3 {[%clk 0:02:58]}  d6 {[%clk 0:02:59]} 3. d4 {[%clk 0:02:54]}  cxd4 {[%clk 0:03:00]} 4. Nxd4 {[%clk 0:02:54]}  Nf6 {[%clk 0:03:00]} 5. Nc3 {[%clk 0:02:54]}  a6 {[%clk 0:03:01]} 6. Bc4 {[%clk 0:02:54]}  e6 {[%clk 0:03:01]} 7. O-O {[%clk 0:02:53]}  b5 {[%clk 0:03:00]} 8. Bb3 {[%clk 0:02:52]}  Be7 {[%clk 0:03:00]} 9. f4 {[%clk 0:02:52]}  Nbd7 {[%clk 0:02:57]} 10. f5 {[%clk 0:02:25]}  e5 {[%clk 0:02:51]} 11. Nde2 {[%clk 0:02:25]}  Bb7 {[%clk 0:02:42]} 12. Ng3 {[%clk 0:02:23]}  h5 {[%clk 0:02:41]} 13. Bg5 {[%clk 0:02:19]}  h4 {[%clk 0:02:40]} 14. Nge2 {[%clk 0:02:07]}  b4 {[%clk 0:02:29]} 15. Bxf6 {[%clk 0:02:05]}  Nxf6 {[%clk 0:02:24]} 16. Nd5 {[%clk 0:01:49]}  Nxe4 {[%clk 0:02:24]} 17. a3 {[%clk 0:01:21]}  h3 {[%clk 0:02:07]} 18. axb4 {[%clk 0:01:10]}  hxg2 {[%clk 0:02:05]} 19. Kxg2 {[%clk 0:01:11]}  Bh4 {[%clk 0:01:56]} 20. Qd3 {[%clk 0:00:57]}  Qg5+ {[%clk 0:01:53]} 21. Ng3 {[%clk 0:00:56]}  Qd2+ {[%clk 0:01:13]} 22. Kg1 {[%clk 0:00:18]}  Bxg3 {[%clk 0:01:03]} 23. Qxd2 {[%clk 0:00:13]}  Nxd2 {[%clk 0:01:02]} 24. hxg3 {[%clk 0:00:13]}  Nxb3 {[%clk 0:00:59]} 25. Nc7+ {[%clk 0:00:14]}  Kd7 {[%clk 0:01:00]} 26. Nxa8 {[%clk 0:00:15]}  Nxa1 {[%clk 0:00:56]} 27. Nb6+ {[%clk 0:00:15]}  Kc7 {[%clk 0:00:55]} 28. Na4 {[%clk 0:00:12]}  Nxc2 {[%clk 0:00:55]} 0-1